bitfinex/quotes_ETHUSD_20240823
["timestamp","ask_amount","ask_price","bid_price","bid_amount"]
[1724450889447,6.58388,2790.3,2789.6,5.540927]
[1724450890553,3.0,2790.3,2789.6,5.540927]
[1724450890718,3.58399,2790.2,2789.3,4.7113]
[1724450890917,3.58399,2790.2,2789.3,8.29631]
[1724450891117,3.0,2790.1,2789.3,4.7113]
[1724450891350,3.0,2790.1,2789.4,4.414565]
[1724450891944,3.0,2790.3,2789.6,3.58472]
[1724450892107,6.58385,2790.3,2789.4,7.999475]
[1724450892444,1.92280072,2790.3,2789.5,3.58485]
[1724450892810,5.50670072,2790.3,2789.5,3.58485]
[1724450893006,0.083,2791.0,2789.7,4.6551]
[1724450893234,0.55,2790.9,2789.7,4.6551]
[1724450893406,3.58396,2790.3,2789.7,4.6551]
[1724450894231,3.58364,2790.5,2789.7,4.6551]
[1724450894618,3.58374,2790.4,2789.7,4.6551]
[1724450894845,3.58364,2790.5,2789.8,0.90397615]
[1724450894846,7.16734,2790.5,2789.8,0.90397615]
[1724450895178,0.083,2791.0,2790.4,4.6551]
[1724450895627,0.083,2791.0,2789.9,12.46]
[1724450895628,0.083,2791.0,2790.1,4.6551]
[1724450895837,3.58341,2790.7,2790.1,4.6551]
[1724450896475,3.5834,2790.7,2789.8,5.55907615]
[1724450896635,0.083,2791.0,2789.8,5.55907615]
[1724450896636,6.58354,2790.6,2789.8,5.55907615]
[1724450896865,6.58355,2790.6,2789.8,5.55907615]
[1724450897064,3.58362,2790.5,2789.8,5.55907615]
[1724450897268,3.58362,2790.5,2789.9,0.66586204]
[1724450897269,3.0,2790.4,2789.9,0.66586204]
[1724450897807,3.58315,2790.9,2790.1,7.16806]
[1724450897951,0.083,2791.0,2790.1,5.0194]
[1724450899149,14.57539734,2791.6,2790.2,5.0194]
[1724450899150,10.99322734,2791.6,2790.2,5.0194]
[1724450899401,3.0,2791.5,2790.4,5.0194]
[1724450899584,3.5828,2791.2,2790.5,1.24594]
[1724450899888,3.0,2791.5,2790.5,1.24594]
[1724450900096,3.58284,2791.1,2790.5,1.24594]
[1724450901097,3.58244,2791.4,2790.6,8.60276]
[1724450901268,3.58244,2791.4,2790.7,1.343226]
[1724450902291,3.58256,2791.3,2790.7,1.343226]
[1724450902602,0.55,2791.5,2790.6,5.0194]
[1724450902603,3.33269,2791.2,2790.6,5.0194]
[1724450903199,6.91547,2791.2,2790.6,5.0194]
[1724450903490,6.91549,2791.2,2790.6,5.0194]
[1724450903700,0.55,2791.5,2790.3,11.02377]
[1724450903701,3.58307,2790.9,2790.3,7.44]
[1724450903992,0.55,2791.1,2790.3,9.19480927]
[1724450903993,3.58321,2790.8,2790.3,9.19480927]
[1724450904190,3.58304,2791.0,2790.3,9.19480927]
[1724450904428,3.0,2790.9,2790.3,9.19480927]
[1724450904604,6.58308,2790.9,2790.3,9.19480927]
[1724450904940,10.16624,2790.9,2790.3,9.19480927]
[1724450905233,6.58308,2790.9,2790.3,9.19480927]
[1724450905531,10.16624,2790.9,2790.3,9.19480927]
[1724450905741,6.58314,2790.9,2790.3,9.19480927]
[1724450906037,3.58341,2790.7,2790.3,7.44]
[1724450906335,6.58312,2790.9,2790.3,7.44]
[1724450906336,6.58311,2790.9,2790.3,7.44]
[1724450906520,3.58262,2791.3,2790.5,3.58349]
[1724450906834,7.16528,2791.3,2790.4,6.26534]
[1724450907033,3.58268,2791.2,2790.4,6.26534]
[1724450907217,3.58268,2791.2,2790.5,1.728906]
[1724450907944,3.58291,2791.1,2790.4,5.0194]
[1724450908306,3.0,2791.0,2790.4,5.0194]
[1724450909107,3.0,2791.0,2790.4,8.6031]
[1724450909312,3.58292,2791.1,2790.4,5.0194]
[1724450909507,3.0,2791.0,2790.4,5.0194]
[1724450909723,3.0,2791.0,2790.4,5.52134]
[1724450909940,3.0,2791.0,2790.4,9.10503]
[1724450910731,3.0,2791.2,2790.4,9.10503]
[1724450911142,3.0,2791.2,2790.4,9.10495]
[1724450911298,3.0,2791.2,2790.4,5.0194]
[1724450911502,3.58317,2790.9,2790.1,7.27927]
[1724450911713,3.58285,2791.1,2790.3,3.58374]
[1724450911916,6.58296,2791.0,2790.2,7.16782]
[1724450912123,3.58296,2791.0,2790.2,3.58387]
[1724450912636,3.58303,2791.0,2790.2,3.58387]
[1724450912824,3.58303,2791.0,2790.2,6.27454]
[1724450913631,3.58307,2790.9,2790.2,6.27454]
[1724450913815,3.58307,2790.9,2790.2,2.69067]
[1724450914339,3.58295,2791.0,2790.2,6.27456]
[1724450916328,3.58308,2790.9,2790.2,6.27456]
[1724450916518,3.58308,2790.9,2790.2,3.58389]
[1724450918252,3.58308,2790.9,2789.7,4.9234]
[1724450918253,7.21906929,2790.6,2789.7,4.9234]
[1724450918409,3.58431,2790.0,2789.4,4.9234]
[1724450918609,3.0,2790.4,2789.4,4.9234]
[1724450918813,3.58399,2790.2,2789.5,0.49234]
[1724450919039,0.55,2790.3,2789.4,4.9234]
[1724450919216,3.58411,2790.1,2789.4,4.9234]
[1724450919438,4.13391,2790.3,2789.4,4.9234]
[1724450919750,3.58416,2790.1,2789.4,4.9234]
[1724450919968,3.58431,2790.0,2789.4,4.9234]
[1724450920255,3.58431,2790.0,2789.4,5.774254]
[1724450920757,3.58412,2790.1,2789.4,9.359234]
[1724450921110,3.58412,2790.1,2789.4,5.774254]
[1724450921408,3.58412,2790.1,2789.4,4.9234]
[1724450922059,3.58494,2789.5,2788.3,4.9234]
[1724450922214,3.58468,2789.7,2789.0,4.9234]
[1724450922411,3.58482,2789.6,2789.0,4.9234]
[1724450922614,3.58506,2789.4,2789.0,5.774315]
[1724450922850,3.58506,2789.4,2789.0,4.9234]
[1724450923214,3.58527,2789.2,2788.6,4.9234]
[1724450923411,3.58543,2789.1,2788.6,4.9234]
[1724450923653,3.58527,2789.2,2788.6,4.9234]
[1724450923838,3.58527,2789.2,2788.7,0.49234]
[1724450924007,3.58572,2788.9,2788.6,4.9234]
[1724450924213,3.58572,2788.9,2788.2,4.9234]
[1724450924429,3.58545,2789.1,2788.3,3.58639]
[1724450924919,3.58564,2788.9,2788.2,4.9234]
[1724450925118,3.58545,2789.1,2788.2,4.9234]
[1724450925427,3.58545,2789.1,2788.3,4.15251817]
[1724450925631,3.58545,2789.1,2788.3,7.73883817]
[1724450925848,3.58545,2789.1,2788.4,3.58626]
[1724450926048,3.58521,2789.3,2788.4,3.58626]
[1724450926371,7.13527,2789.2,2788.4,3.58626]
[1724450926515,3.58611,2788.6,2788.1,0.73868174]
[1724450926715,3.586,2788.7,2788.1,1.56342852]
[1724450926916,3.58584,2788.8,2788.1,1.56342852]
[1724450927164,3.58557,2789.0,2788.2,3.58646]
[1724450927364,3.0,2788.9,2788.2,3.58646]
[1724450927531,3.0,2788.9,2788.3,0.44112068]
[1724450927733,3.0,2788.9,2788.1,4.41139678]
[1724450927931,6.5856,2789.0,2788.2,4.9234]
[1724450928820,6.5856,2789.0,2788.2,8.50987]
[1724450928821,3.58568,2788.9,2788.2,8.50987]
[1724450929024,3.0,2789.0,2788.3,3.58638]
[1724450929211,3.0,2789.0,2788.2,8.50984]
[1724450929437,3.0,2789.0,2788.3,0.93345868]
[1724450930430,3.58547,2789.1,2788.3,0.93345868]
[1724450930766,3.58547,2789.1,2788.4,4.9234]
[1724450930969,3.58518,2789.3,2788.5,3.58613]
[1724450930970,7.17043,2789.3,2788.5,3.58613]
[1724450931264,3.58518,2789.3,2788.5,3.58613]
[1724450931421,3.58518,2789.3,2788.7,4.9234]
[1724450932021,7.22009929,2789.8,2788.7,4.9234]
[1724450932022,3.58539,2789.1,2788.7,4.9234]
[1724450932362,3.58479,2789.6,2788.7,4.9234]
[1724450932363,3.58551,2789.0,2788.7,4.9234]
[1724450932871,3.58591,2788.7,2788.4,12.3973]
[1724450934632,3.58603,2788.6,2788.4,7.44]
[1724450934970,3.58591,2788.7,2788.4,7.44]
[1724450935131,7.17145,2788.9,2788.4,7.44]
[1724450935334,3.5858,2788.8,2788.4,7.44]
[1724450935851,3.58592,2788.7,2788.4,7.44]
[1724450936048,7.17193,2788.7,2788.4,7.44]
[1724450936417,3.58592,2788.7,2788.4,7.44]
[1724450937664,3.58615,2788.5,2788.4,7.44]
[1724450937865,3.58602,2788.6,2788.1,4.9573]
[1724450938032,3.58602,2788.6,2788.2,0.49573]
[1724450938367,3.58602,2788.6,2788.1,4.9573]
[1724450939420,3.58584,2788.8,2788.1,4.9573]
[1724450939621,3.58611,2788.6,2788.1,4.9573]
[1724450940252,3.58584,2788.8,2788.1,4.9573]
[1724450940421,3.58584,2788.8,2788.1,8.5439]
[1724450940621,3.58616,2788.5,2788.2,0.85439]
[1724450940934,3.58628,2788.4,2787.8,5.1254]
[1724450941148,3.0,2788.9,2787.8,5.1254]
[1724450941465,0.55,2788.8,2787.8,5.1254]
[1724450941620,3.58629,2788.4,2787.8,5.1254]
[1724450941864,3.58629,2788.4,2787.9,0.871257]
[1724450942020,0.55,2788.8,2787.9,0.871257]
[1724450942420,3.58623,2788.5,2787.9,0.871257]
[1724450942670,3.58613,2788.6,2787.9,0.871257]
[1724450942872,3.0,2788.5,2787.9,0.871257]
[1724450943170,3.58632,2788.4,2788.0,1.3170617]
[1724450943363,3.0,2788.5,2787.9,0.871257]
[1724450943671,3.58629,2788.4,2787.9,0.871257]
[1724450943971,3.0,2788.5,2787.9,0.871257]
[1724450944332,3.0,2788.5,2787.9,4.458177]
[1724450944564,3.0,2788.5,2787.9,4.458117]
[1724450944773,4.1358,2788.8,2788.0,4.9038197]
[1724450944933,3.58557,2789.0,2788.2,3.58645]
[1724450945120,3.58557,2789.0,2788.3,3.5864]
[1724450945476,3.58565,2788.9,2788.2,3.58645]
[1724450946072,3.0,2788.8,2788.2,3.58645]
[1724450946271,3.0,2788.8,2788.3,1.615185]
[1724450946421,1.92280072,2788.8,2788.3,1.615185]
[1724450946618,3.58565,2788.9,2788.3,1.615185]
[1724450947660,3.58604,2788.6,2788.3,1.615185]
[1724450947963,3.58604,2788.6,2788.1,12.5654]
[1724450948374,7.17271,2788.4,2788.1,12.5654]
[1724450948666,3.58631,2788.4,2787.8,17.5854]
[1724450948866,3.58631,2788.4,2787.9,2.50254]
[1724450949072,3.58607,2788.6,2787.9,2.50254]
[1724450949228,7.17219,2788.6,2787.9,2.50254]
[1724450949566,3.58607,2788.6,2787.9,2.50254]
[1724450949726,3.58607,2788.6,2788.0,2.367497]
[1724450950237,7.1722,2788.6,2788.0,2.367497]
[1724450950432,7.17219,2788.6,2788.0,2.367497]
[1724450950641,3.58607,2788.6,2788.0,2.367497]
[1724450950959,3.5859,2788.7,2788.0,5.95324257]
[1724450951136,3.5859,2788.7,2788.1,1.20426726]
[1724450951540,3.5859,2788.7,2788.0,5.95330257]
[1724450952135,3.5847,2789.7,2788.9,3.58564]
[1724450952340,3.58496,2789.5,2788.7,3.58584]
[1724450952577,3.58501,2789.4,2788.7,3.58584]
[1724450952871,3.58501,2789.4,2788.8,1.102584]
[1724450953025,12.04376,2789.9,2788.9,5.0586]
[1724450953226,4.84529176,2790.8,2788.9,5.0586]
[1724450953227,7.00945879,2790.2,2788.9,5.0586]
[1724450953452,3.5843,2790.0,2789.3,3.5851]
[1724450953656,3.5843,2790.0,2789.1,3.5853]
[1724450953876,3.58419,2790.1,2789.3,3.5851]
[1724450954051,3.42542879,2790.2,2789.2,0.86439]
[1724450954250,3.58439,2789.9,2789.2,0.86439]
[1724450954659,3.58462,2789.7,2789.2,0.86439]
[1724450954832,3.58462,2789.7,2789.0,12.4986]
[1724450954833,3.58487,2789.5,2789.0,12.4986]
[1724450955539,3.58465,2789.7,2789.0,12.4986]
[1724450956070,3.58476,2789.6,2789.0,12.4986]
[1724450956276,6.58421,2790.1,2789.2,5.0586]
[1724450956429,6.58424,2790.0,2789.3,4.449509]
[1724450956625,3.0,2790.0,2789.3,4.449509]
[1724450956870,3.0,2790.0,2789.3,0.864389]
[1724450957082,3.58439,2789.9,2789.3,0.864389]
[1724450957382,3.58363,2790.5,2789.7,3.58452]
[1724450957583,3.58363,2790.5,2789.8,0.853922]
[1724450957881,3.58385,2790.3,2789.8,0.853922]
[1724450958534,7.1678,2790.3,2789.8,0.853922]
[1724450958734,7.16778,2790.3,2789.8,0.853922]
[1724450959047,7.1678,2790.3,2789.6,4.9547]
[1724450959244,3.58398,2790.2,2789.6,4.9547]
[1724450959473,7.16804,2790.2,2789.6,4.9547]
[1724450959661,3.58398,2790.2,2789.6,4.9547]
[1724450960034,3.58431,2790.0,2789.6,4.9547]
[1724450960230,3.58431,2790.0,2789.5,7.44]
[1724450961771,3.58431,2790.0,2789.4,7.27927]
[1724450962098,3.58431,2790.0,2789.4,8.861183]
[1724450962467,3.58402,2790.2,2789.4,12.446163]
[1724450962709,3.58412,2790.1,2789.4,12.446163]
[1724450962854,3.58402,2790.2,2789.4,16.031073]
[1724450963050,3.58402,2790.2,2789.5,3.58485]
[1724450963365,3.58381,2790.4,2789.8,4.9547]
[1724450963572,3.0,2790.3,2789.8,4.9547]
[1724450964013,6.58394,2790.3,2789.8,4.9547]
[1724450965211,6.58394,2790.3,2789.8,4.9347]
[1724450965409,3.0,2790.3,2789.8,4.9347]
[1724450966369,3.58348,2790.6,2789.8,9.53131543]
[1724450966570,3.58348,2790.6,2789.8,13.11571543]
[1724450966788,3.58348,2790.6,2789.8,5.94694543]
[1724450966956,3.58372,2790.4,2789.8,5.94694543]
[1724450967157,3.58372,2790.4,2789.9,0.95314854]
[1724450968700,3.58384,2790.3,2789.8,5.94694543]
[1724450970000,3.58384,2790.3,2789.8,4.9347]
[1724450970570,3.58399,2790.2,2789.6,1.6030943]
[1724450970799,3.58413,2790.1,2789.5,19.67397]
[1724450971014,3.58437,2789.9,2789.5,19.67397]
[1724450971308,3.58413,2790.1,2789.5,4.9547]
[1724450972460,3.58413,2790.1,2789.3,3.58512]
[1724450972461,3.58423,2790.0,2789.3,3.58512]
[1724450972664,3.58482,2789.6,2789.2,5.2396]
[1724450972984,3.58457,2789.8,2789.2,5.2396]
[1724450973191,3.58477,2789.6,2789.2,5.2396]
[1724450973391,7.16917,2789.8,2789.2,5.2396]
[1724450973590,3.58457,2789.8,2789.2,5.2396]
[1724450975167,3.58457,2789.8,2788.8,5.2396]
[1724450975168,3.58522,2789.3,2788.8,5.2396]
[1724450975476,3.58522,2789.3,2788.3,3.58637]
[1724450975665,3.58572,2788.9,2788.4,5.2396]
[1724450975868,7.17226,2788.6,2787.8,3.58704]
[1724450976184,3.58612,2788.6,2787.8,3.58704]
[1724450976502,7.17169,2788.8,2787.9,3.58691]
[1724450976666,6.5859,2788.7,2788.0,0.717388]
[1724450978282,3.58557,2789.0,2788.1,8.47157]
[1724450978608,6.58567,2788.9,2788.1,8.47157]
[1724450979082,3.58579,2788.8,2788.1,8.47157]
[1724450979414,3.58626,2788.5,2788.1,4.8849]
[1724450979595,3.58607,2788.6,2788.1,4.8849]
[1724450979767,3.58594,2788.7,2788.1,4.8849]
[1724450980115,3.58583,2788.8,2788.1,4.8849]
[1724450980411,3.58583,2788.8,2788.1,5.732068]
[1724450980610,3.5859,2788.7,2788.1,5.732068]
[1724450980982,3.0,2788.9,2788.1,5.732068]
[1724450981182,3.58578,2788.8,2788.1,5.732068]
[1724450982081,3.0,2788.9,2788.1,9.318638]
[1724450982286,3.58558,2789.0,2788.4,4.8849]
[1724450983918,3.58598,2788.7,2788.2,0.9318638]
[1724450984068,3.58598,2788.7,2788.0,12.3249]
[1724450984420,7.1717,2788.8,2788.0,15.91168]
[1724450984615,3.58585,2788.8,2788.0,12.3249]
[1724450985483,3.58604,2788.6,2788.0,12.3249]
[1724450985662,3.58604,2788.6,2788.1,1.949859]
[1724450985863,3.58598,2788.7,2788.1,1.949859]
[1724450986279,3.58585,2788.8,2788.1,1.949859]
[1724450986484,7.17174,2788.8,2788.1,1.949859]
[1724450986793,3.58585,2788.8,2788.1,1.949859]
[1724450987029,7.17172,2788.8,2788.1,1.949859]
[1724450987313,6.58536,2789.2,2788.3,4.8849]
[1724450987530,6.58536,2789.2,2788.4,3.58619]
[1724450987531,6.5854,2789.1,2788.4,3.58619]
[1724450987866,3.0,2789.1,2788.4,3.58619]
[1724450988071,7.17041,2789.3,2788.6,8.47092]
[1724450988272,3.5852,2789.3,2788.6,8.47092]
[1724450988699,3.58495,2789.5,2788.8,3.58567]
[1724450989011,3.58495,2789.5,2788.9,4.8849]
[1724450989216,3.58495,2789.5,2788.9,6.090527]
[1724450989599,3.58495,2789.5,2788.9,4.8849]
[1724450990108,3.585,2789.4,2788.9,4.8849]
[1724450990314,3.58495,2789.5,2788.9,4.8849]
[1724450991272,3.58507,2789.4,2788.9,4.8849]
[1724450991872,3.58486,2789.6,2788.9,4.8849]
[1724450992078,6.5849,2789.5,2788.9,5.37339]
[1724450992820,3.0,2789.5,2788.9,5.37339]
[1724450993024,6.58482,2789.6,2788.9,5.37339]
[1724450993477,6.58482,2789.6,2788.9,8.95901]
[1724450993674,3.58489,2789.5,2788.9,5.37339]
[1724450993909,7.16985,2789.5,2788.9,5.37339]
[1724450994306,3.58489,2789.5,2788.9,5.37339]
[1724450995092,3.58501,2789.4,2788.9,5.37339]
[1724450997233,3.58513,2789.3,2788.9,5.37339]
[1724450997988,3.5853,2789.2,2788.9,4.8849]
[1724450998400,3.58513,2789.3,2788.9,4.8849]
[1724450998624,7.17038,2789.3,2788.9,4.8849]
[1724450998838,7.17038,2789.3,2788.6,5.0974]
[1724450999333,3.58546,2789.1,2788.6,5.0974]
[1724451000009,7.17093,2789.1,2788.6,5.0974]
[1724451000523,3.58546,2789.1,2788.6,5.0974]
[1724451000833,3.5852,2789.3,2788.6,5.0974]
[1724451001135,3.58543,2789.1,2788.6,5.0974]
[1724451001425,3.58558,2789.0,2788.6,5.0974]
[1724451001630,3.58565,2788.9,2788.6,5.0974]
[1724451002215,7.17093,2789.1,2788.6,5.0974]
[1724451002417,3.58543,2789.1,2788.6,5.0974]
[1724451002717,6.5852,2789.3,2788.7,0.50974]
[1724451003083,6.5852,2789.3,2788.6,5.0974]
[1724451003335,3.5854,2789.1,2788.6,5.0974]
[1724451003830,6.58518,2789.3,2788.6,5.0974]
[1724451003987,3.0,2789.3,2788.6,5.0974]
[1724451004186,3.5847,2789.7,2789.0,5.0974]
[1724451004488,3.5847,2789.7,2789.0,5.965694]
[1724451004892,3.58481,2789.6,2789.0,5.965694]
[1724451005088,3.58469,2789.7,2789.0,5.965694]
[1724451006139,7.1694,2789.7,2789.0,5.965694]
[1724451006317,3.5848,2789.6,2789.0,5.965694]
[1724451006944,6.58441,2789.9,2789.1,0.9551234]
[1724451007242,3.58449,2789.8,2789.1,0.9551234]
[1724451007439,6.58441,2789.9,2789.1,4.5404934]
[1724451007997,6.58441,2789.9,2789.1,4.5404234]
[1724451008592,6.58441,2789.9,2789.2,3.58523]
[1724451008906,3.58449,2789.8,2789.3,0.45403534]
[1724451009108,3.58495,2789.5,2789.0,5.0974]
[1724451009722,3.58517,2789.3,2789.0,5.0974]
[1724451009923,3.58517,2789.3,2788.5,3.5861]
[1724451009924,3.58533,2789.2,2788.6,5.0974]
[1724451010124,3.58538,2789.1,2788.6,5.96575]
[1724451010332,3.58551,2789.0,2788.6,5.0974]
[1724451011041,7.17114,2789.0,2788.6,5.0974]
[1724451011220,3.58571,2788.9,2788.6,5.0974]
[1724451013934,3.58571,2788.9,2788.3,7.44]
[1724451013935,3.5858,2788.8,2788.3,12.6784]
[1724451014828,3.0,2789.3,2788.3,12.6784]
[1724451014829,3.63557929,2789.2,2788.3,7.44]
[1724451015032,3.58613,2788.6,2788.3,7.44]
[1724451016720,3.0,2788.8,2788.3,8.03548426]
[1724451016913,3.58571,2788.9,2788.3,8.03548426]
[1724451017171,3.58553,2789.0,2788.3,8.03548426]
[1724451017172,3.58579,2788.8,2788.3,8.03548426]
[1724451017613,4.136,2788.7,2788.1,5.2384]
[1724451017816,3.58577,2788.8,2788.1,8.82505]
[1724451019652,3.5859,2788.7,2788.1,5.2384]
[1724451020006,3.58574,2788.9,2788.1,8.82503]
[1724451020007,3.58572,2788.9,2788.1,8.82503]
[1724451020347,3.58581,2788.8,2788.1,12.41162]
[1724451020519,3.58581,2788.8,2788.2,1.241162]
[1724451020852,3.58515,2789.3,2788.4,5.2384]
[1724451021059,7.17035,2789.3,2788.5,3.58603]
[1724451021270,3.58515,2789.3,2788.6,0.882443]
[1724451021820,3.58539,2789.1,2788.6,0.882443]
[1724451022133,3.58539,2789.1,2788.4,5.2384]
[1724451022532,3.0,2789.5,2788.4,5.2384]
[1724451022533,3.58573,2788.9,2788.4,5.2384]
[1724451024165,3.58597,2788.7,2788.4,5.2384]
[1724451024710,3.58597,2788.7,2787.4,5.2384]
[1724451024711,3.58641,2788.3,2787.4,5.2384]
[1724451024882,3.58641,2788.3,2787.4,5.76224]
[1724451024883,3.58694,2787.9,2787.4,5.76224]
[1724451025363,3.58713,2787.8,2787.4,5.2384]
[1724451025587,3.58734,2787.6,2787.4,5.2384]
[1724451025717,3.58744,2787.5,2787.4,5.2384]
[1724451025919,3.58744,2787.5,2787.0,5.2384]
[1724451026721,3.58732,2787.6,2787.0,5.2384]
[1724451026966,3.0,2787.9,2787.0,5.2384]
[1724451026967,3.58727,2787.7,2787.0,5.2384]
[1724451027165,3.58727,2787.7,2787.0,6.479875]
[1724451027734,3.58727,2787.7,2787.0,10.067955]
[1724451027937,3.0,2787.9,2787.0,6.479875]
[1724451028176,3.0,2787.9,2787.0,5.2384]
[1724451028177,3.58735,2787.6,2787.0,5.2384]
[1724451028493,3.58745,2787.5,2787.0,5.2384]
[1724451028842,3.58778,2787.3,2787.0,5.2384]
[1724451029043,3.58783,2787.2,2786.6,5.2384]
[1724451029239,3.58783,2787.2,2786.6,6.121109]
[1724451030300,3.5876,2787.4,2786.6,9.709689]
[1724451030977,3.5876,2787.4,2786.7,3.58847]
[1724451031178,3.58736,2787.6,2786.8,3.58833]
[1724451031347,3.0,2787.5,2786.8,3.58833]
[1724451032042,3.0,2787.5,2786.9,8.65329]
[1724451032259,0.06021231,2787.4,2786.9,8.65329]
[1724451032611,6.58718,2787.7,2787.0,3.58808]
[1724451032809,3.58732,2787.6,2786.9,8.65323]
[1724451033609,6.58718,2787.7,2787.0,3.58807]
[1724451033764,6.58718,2787.7,2787.0,4.94517909]
[1724451033964,6.58718,2787.7,2787.0,1.35710909]
[1724451034287,10.17447,2787.7,2787.0,1.35710909]
[1724451035005,3.58735,2787.6,2786.9,5.0651]
[1724451035186,3.58765,2787.4,2786.9,5.0651]
[1724451035392,3.0,2787.7,2786.9,8.65331]
[1724451035605,6.5872,2787.7,2787.0,3.58806]
[1724451035898,0.05463039,2787.6,2787.1,0.865316]
[1724451036261,0.05463039,2787.6,2787.3,3.58762]
[1724451036467,0.05463039,2787.6,2787.4,3.5875]
[1724451036662,3.58693,2787.9,2787.2,5.0651]
[1724451036922,3.58693,2787.9,2787.2,8.65291]
[1724451036923,0.05474373,2787.5,2787.2,8.65291]
[1724451037060,3.58693,2787.9,2787.2,8.65291]
[1724451037261,0.05467057,2787.4,2787.2,5.0651]
[1724451037510,3.58693,2787.9,2787.2,5.0651]
[1724451037808,0.05496318,2787.8,2787.2,5.0651]
[1724451038707,0.05496318,2787.8,2787.2,8.65292]
[1724451038892,0.05496318,2787.8,2787.3,1.224079]
[1724451040365,0.05496318,2787.8,2787.2,8.65292]
[1724451040366,0.05496318,2787.8,2787.2,5.0651]
[1724451040595,3.58728,2787.7,2787.2,5.0651]
[1724451040765,3.5874,2787.6,2787.2,5.0651]
[1724451040980,0.05469718,2787.5,2786.9,3.58819]
[1724451041289,0.05469718,2787.5,2787.2,3.58774]
[1724451041498,0.05469718,2787.5,2787.3,5.435874]
[1724451041700,3.587,2787.9,2787.3,5.435874]
[1724451041881,0.05328451,2787.4,2787.3,5.435874]
[1724451042078,3.587,2787.9,2787.3,5.435874]
[1724451042293,0.05320506,2787.4,2787.3,5.435874]
[1724451042510,3.58706,2787.8,2787.3,5.435874]
[1724451042663,0.05146169,2787.4,2787.0,8.66515]
[1724451043006,3.58732,2787.6,2787.0,5.0771]
[1724451043511,3.63895541,2787.5,2787.0,5.0771]
[1724451043692,0.05145541,2787.5,2787.0,5.0771]
[1724451043895,0.05145541,2787.5,2787.1,0.50771]
[1724451044079,0.05145541,2787.5,2787.1,4.09557]
[1724451044283,3.58715,2787.8,2787.1,4.09557]
[1724451044577,3.58725,2787.7,2787.1,0.50771]
[1724451044795,0.04975312,2787.6,2787.1,0.50771]
[1724451046908,3.58816,2787.0,2786.4,12.5171]
[1724451047205,0.04752884,2786.9,2786.4,14.127698]
[1724451049144,0.04752884,2786.9,2786.4,17.716548]
[1724451049481,3.58804,2787.1,2786.4,17.716548]
[1724451049720,0.04736035,2786.8,2786.4,17.716548]
[1724451049893,7.1761,2787.1,2786.4,14.127698]
[1724451050093,0.04736661,2786.7,2786.4,12.5171]
[1724451050297,3.58804,2787.1,2786.4,16.10595]
[1724451050804,0.04750674,2787.0,2786.4,12.5171]
[1724451051008,3.58829,2786.9,2786.4,7.44]
[1724451051511,0.0460113,2786.8,2786.4,7.44]
[1724451052091,3.6343813,2786.8,2786.4,7.44]
[1724451052294,0.0460113,2786.8,2786.4,7.44]
[1724451053624,3.5886,2786.6,2786.4,7.44]
[1724451053779,3.58921,2786.2,2785.5,5.3097]
[1724451053980,3.58934,2786.1,2785.5,5.3097]
[1724451054227,0.0451587,2786.0,2785.5,5.3097]
[1724451054583,0.0451587,2786.0,2785.5,8.8997]
[1724451054999,8.2911,2786.5,2785.5,8.8997]
[1724451055000,8.2911,2786.5,2785.5,6.558689]
[1724451055151,8.2911,2786.5,2785.5,5.3097]
[1724451055152,3.0,2786.4,2785.5,5.3097]
[1724451055504,6.5888,2786.5,2785.8,3.58963]
[1724451055955,7.17784,2786.4,2785.7,3.58968]
[1724451056121,3.58886,2786.4,2785.7,3.58968]
[1724451056327,3.58899,2786.3,2785.7,3.58968]
[1724451056558,3.58911,2786.2,2785.5,8.89965]
[1724451056715,3.58911,2786.2,2785.5,10.148635]
[1724451056913,3.58924,2786.1,2785.5,5.3097]
[1724451057157,3.58924,2786.1,2785.4,3.59014]
[1724451057457,3.58957,2785.9,2785.2,5.3097]
[1724451057809,0.0447067,2785.8,2785.2,5.3097]
[1724451058015,0.0447067,2785.8,2785.2,8.90009]
[1724451058252,0.0447067,2785.8,2785.2,10.14914]
[1724451058784,0.0447067,2785.8,2785.3,3.59025]
[1724451059425,0.0447067,2785.8,2785.3,3.59019]
[1724451059606,0.0447067,2785.8,2785.3,7.18039]
[1724451059811,4.13941,2786.0,2785.3,3.59019]
[1724451059812,6.58952,2785.9,2785.3,3.59019]
[1724451060063,0.04308871,2785.7,2785.2,5.3097]
[1724451060266,3.63279196,2785.8,2785.2,5.3097]
[1724451060466,0.04301546,2785.6,2785.2,5.3097]
[1724451060766,0.04308871,2785.7,2785.2,5.3097]
[1724451060971,0.0429422,2785.5,2785.2,5.3097]
[1724451061278,0.04286893,2785.4,2785.2,5.3097]
[1724451061724,3.58963,2785.8,2785.2,5.3097]
[1724451061932,0.04279566,2785.3,2785.2,5.3097]
[1724451062240,0.04279566,2785.3,2785.2,8.9001]
[1724451062437,3.58964,2785.8,2785.2,5.3097]
[1724451062676,0.04279566,2785.3,2785.2,5.3097]
[1724451062879,3.58964,2785.8,2785.2,5.3097]
[1724451063075,0.04279566,2785.3,2785.2,5.3097]
[1724451063308,3.58964,2785.8,2785.2,5.3097]
[1724451063470,0.04279566,2785.3,2785.2,5.3097]
[1724451063672,3.58964,2785.8,2785.2,8.90008]
[1724451063889,0.04279566,2785.3,2785.2,5.3097]
[1724451064116,3.58964,2785.8,2785.2,5.3097]
[1724451064405,7.17938,2785.8,2785.2,5.3097]
[1724451064603,0.04027219,2785.7,2785.2,5.3097]